[Event "FIDE Womens Grand Swiss 2023"]
[Site "Douglas/Isle of Man"]
[Date "2023.10.30"]
[Round "6.2"]
[White "Vaishali, Rameshbabu"]
[Black "Goryachkina, Aleksandra"]
[Result "1/2-1/2"]
[ECO "C54"]
[WhiteElo "2448"]
[BlackElo "2558"]
[Annotator "TA"]
[PlyCount "82"]
[EventDate "2023.10.04"]
[EventType "swiss"]
[EventCountry "GBR"]
[SourceTitle "playchess.com"]
[Source "ChessBase"]
[SourceQuality "1"]
[TimeControl "40/6000+30:20/3000+30:900+30"]

{[%evp 14,82,18,18,21,14,25,6,15,13,12,8,22,17,35,0,0,0,36,-4,-14,-7,0,-25,0,0,12,-21,0,-30,0,-50,0,0,0,0,8,0,17,16,17,16,13,0,0,0,0,0,0,0,0,-19,-14,-8,0,0,0,0,0,-13,0,0,0,0,0,0,0,0,0,0,0]} 1. e4 {[%emt 0:10:35]} e5 {[%emt 0:10:19]} 2. Nf3 {[%emt 0:00:13]} Nc6 {[%emt 0:00:19]} 3. Bc4 {[%emt 0:00:07]} Bc5 {[%emt 0:00:34]} 4. c3 {[%emt 0:00:11]} Nf6 {[%emt 0:00:29]} 5. d3 {[%emt 0:00:14]} d6 {[%emt 0:00:31]} 6. O-O {[%emt 0:00:17]} h6 {[%emt 0:01:06]} 7. Re1 {[%emt 0:00:31]} O-O {[%emt 0:00:48]} 8. h3 {[%emt 0:00:23]} (8. b4 $5 Bb6 $8 9. a4 $11) 8... Bb6 {[%emt 0:01:48] C54: Giuoco Piano: 4 c3 Nf6, main lines with 5 d4 and 5 d3.} 9. Nbd2 {[%emt 0:00:50]} a5 {[%emt 0:01:11]} 10. Bb5 {[%emt 0:08:00] [#]} Bd7 $146 {[%emt 0:03:46]} ({Predecessor:} 10... Be6 11. Nf1 Ne7 12. Ng3 Nd7 13. d4 f5 14. exf5 Nxf5 15. Nxf5 Bxf5 16. Bc4+ Kh8 17. dxe5 Nxe5 18. Nxe5 dxe5 19. Qxd8 Raxd8 {½-½ Sevian,S (2684)-Dominguez Perez,L (2754) FTX Road to Miami Prelim 2022 (13)}) 11. a4 {[%emt 0:08:34]} Ne7 {[%emt 0:05:41]} 12. Bxd7 {[%emt 0:00:24]} Nxd7 {[%emt 0:01:09]} 13. Nc4 {[%emt 0:02:07]} Bc5 {[%emt 0:03:32]} 14. d4 {[%emt 0:15:13]} exd4 {[%emt 0:00:30]} 15. Nxd4 {[%emt 0:00:10]} Bxd4 {[%emt 0:10:03]} 16. Qxd4 {[%emt 0:03:56]} Nc5 {[%emt 0:00:45] [#] And now ...Nb3 would win.} 17. Qd1 {[%emt 0:07:33] Wards off Nb3} Qd7 {[%emt 0:02:24]} 18. Qc2 {[%emt 0:17:00]} (18. b3 $5) 18... Ng6 {[%emt 0:07:53]} 19. Be3 {[%emt 0:02:24]} Qc6 {[%emt 0:02:11]} 20. Nd2 {[%emt 0:05:47]} Rfe8 {[%emt 0:02:44][%cal Rc5e4]} 21. Bd4 {[%emt 0:05:50]} Nf4 {[%emt 0:03:44][%cal Of7f5]} 22. Re3 {[%emt 0:02:49]} ({White should try} 22. Be3 $11 Nfe6 23. b3) 22... d5 {[%emt 0:08:08]} ({Black should play} 22... Nce6 $15 23. Qd1 f5) 23. Bxc5 $11 {[%emt 0:05:16] The position is equal.} Qxc5 {[%emt 0:00:09]} 24. Rae1 {[%emt 0:01:41]} Re6 {[%emt 0:07:13]} 25. Nb3 {[%emt 0:06:10]} Qe7 {[%emt 0:04:48]} 26. Nd4 {[%emt 0:03:27]} Rxe4 {[%emt 0:07:00]} (26... Rg6 {seems wilder.} 27. g3 Qd7 28. Nf5 Nxh3+ 29. Kg2 Nf4+) 27. Rxe4 {[%emt 0:00:08]} dxe4 {[%emt 0:00:05]} 28. Qxe4 {[%emt 0:00:41]} Qxe4 {[%emt 0:00:28]} 29. Rxe4 {[%emt 0:00:02][%mdl 4096] Endgame KRN-KRN} Nd3 {[%emt 0:01:26]} 30. b3 {[%emt 0:01:36]} Kf8 {[%emt 0:02:02]} 31. Re3 {[%emt 0:00:39]} Nc5 {[%emt 0:03:56]} 32. Kf1 {[%emt 0:01:09]} Re8 {[%emt 0:01:01]} 33. Ke2 {[%emt 0:00:21]} Ne4 {[%emt 0:02:45]} 34. Kf3 {[%emt 0:00:37]} Nc5 {[%emt 0:03:23]} 35. h4 {[%emt 0:00:17]} h5 {[%emt 0:01:09]} 36. Kf4 {[%emt 0:00:43]} Rxe3 {[%emt 0:00:54]} 37. Kxe3 {[%emt 0:00:16]} Ke7 {[%emt 0:00:46]} 38. f3 {[%emt 0:00:54]} Kf6 {[%emt 0:01:46]} 39. Kf4 {[%emt 0:01:02]} c6 {[%emt 0:01:12]} 40. g3 {[%emt 0:01:01]} g6 {[%emt 0:01:28]} 41. g4 {[%emt 0:24:21]} Nd3+ {[%emt 0:25:42] An interesting draw.   Weighted Error Value: White=0.10 (very precise) /Black=0.09 (flawless)} 1/2-1/2

[Event "FIDE Womens Grand Swiss 2023"]
[Site "Douglas/Isle of Man"]
[Date "2023.11.01"]
[Round "7.1"]
[White "Goryachkina, Aleksandra"]
[Black "Muzychuk, Anna"]
[Result "1/2-1/2"]
[ECO "C78"]
[WhiteElo "2558"]
[BlackElo "2510"]
[Annotator "TA"]
[PlyCount "82"]
[EventDate "2023.10.04"]
[EventType "swiss"]
[EventCountry "GBR"]
[SourceTitle "playchess.com"]
[Source "ChessBase"]
[SourceQuality "1"]
[TimeControl "40/6000+30:20/3000+30:900+30"]

{[%evp 14,82,-10,-7,-13,-11,0,0,3,0,2,-6,0,0,1,-12,-8,-28,-16,-43,-41,-43,-11,-14,0,-18,0,0,0,0,0,0,0,0,12,0,0,0,9,0,0,0,0,0,9,0,0,0,0,0,0,0,0,0,0,0,0,0,0,0,0,0,0,0,0,0,0,0,0,0,0]} 1. e4 {[%emt 0:10:26] Hecht,Hans Joachim} e5 {[%emt 0:10:34]} 2. Nf3 {[%emt 0:00:21]} Nc6 {[%emt 0:00:07]} 3. Bb5 {[%emt 0:00:35][%cal Bf1b5,Bb5a4,Ba4b3][%mdl 32]} a6 {[%emt 0:00:14]} 4. Ba4 {[%emt 0:00:18]} Nf6 {[%emt 0:00:23]} 5. O-O {[%emt 0:00:46]} Bc5 {[%emt 0:00:35]} 6. d3 {[%emt 0:06:43]} d6 {[%emt 0:05:47]} 7. h3 {[%emt 0:03:58]} b5 {[%emt 0:04:20]} 8. Bb3 {[%emt 0:00:07]} Na5 {[%emt 0:00:23] C78: Ruy Lopez: Archangelsk and Möller Defences.} 9. Nc3 {[%emt 0:04:59] 9.Be3 is setting a new trend.} h6 {[%emt 0:04:05]} 10. Ne2 {[%emt 0:03:17]} O-O {[%emt 0:03:29]} 11. Ng3 {[%emt 0:00:49]} Re8 {[%emt 0:05:43]} 12. Bd2 {[%emt 0:05:18] [#]} Nxb3 $146 {[%emt 0:00:54]} ({Predecessor:} 12... Bb6 13. Qe2 c6 14. c4 Nb7 15. Bc2 Nc5 16. Be3 Ne6 17. b4 a5 18. a3 Bxe3 19. fxe3 bxc4 20. dxc4 {0-1 Movsesian,S (2635)-Adams,M (2685) Hastings 9697 1996 (8)}) 13. axb3 {[%emt 0:00:05]} d5 {[%emt 0:07:05]} 14. Qe2 {[%emt 0:02:16]} Bb7 {[%emt 0:01:21]} 15. Rfd1 {[%emt 0:02:31]} Qd7 {[%emt 0:08:12]} 16. Nh2 {[%emt 0:06:21]} dxe4 {[%emt 0:04:34]} 17. dxe4 {[%emt 0:04:43]} Qc6 {[%emt 0:00:43][%cal Rf6e4]} (17... Nxe4 $5 18. Nxe4 Qc6 $15) 18. Re1 $1 {[%emt 0:01:14] The position is equal.} Rad8 {[%emt 0:07:59][%cal Of6e4]} 19. b4 {[%emt 0:05:37]} Bd4 {[%emt 0:01:06] This pair of bishops is nice.} 20. c3 {[%emt 0:01:57]} Bb6 {[%emt 0:00:01][%cal Of6e4]} 21. Rad1 {[%emt 0:04:13]} a5 {[%emt 0:06:32]} 22. bxa5 {[%emt 0:02:14]} Bxa5 {[%emt 0:00:01]} 23. Ng4 {[%emt 0:03:02]} Nxg4 {[%emt 0:03:58]} 24. hxg4 {[%emt 0:01:53]} (24. Qxg4 {is interesting.} Bc8 25. Nf5 Bxf5 26. exf5 Bb6 27. Be3) 24... Bc8 {[%emt 0:01:08]} 25. Nf5 {[%emt 0:04:59]} Bxf5 {[%emt 0:04:15]} 26. exf5 {[%emt 0:05:25]} f6 {[%emt 0:01:44]} 27. Be3 {[%emt 0:02:27]} Bb6 {[%emt 0:02:24]} 28. Bxb6 {[%emt 0:02:35]} cxb6 {[%emt 0:04:23]} 29. Rxd8 {[%emt 0:07:48]} Rxd8 {[%emt 0:00:01]} 30. Rd1 {[%emt 0:00:32]} Rxd1+ {[%emt 0:01:47]} 31. Qxd1 $11 {[%emt 0:00:01][%mdl 4096] Endgame KQ-KQ} Qe4 {[%emt 0:04:13]} 32. Qb3+ {[%emt 0:04:32]} Qc4 {[%emt 0:02:34]} 33. Qd1 {[%emt 0:02:38]} Kh7 {[%emt 0:01:36]} 34. f3 {[%emt 0:02:08]} b4 {[%emt 0:00:30]} 35. cxb4 {[%emt 0:01:06]} Qxb4 {[%emt 0:00:01]} 36. Qe2 {[%emt 0:02:16]} Qc5+ {[%emt 0:00:43]} 37. Kf1 {[%emt 0:00:57]} Qc1+ {[%emt 0:00:08]} 38. Kf2 {[%emt 0:00:10]} Qc5+ {[%emt 0:00:04]} 39. Kf1 {[%emt 0:01:10]} Qc1+ {[%emt 0:00:06]} 40. Kf2 {[%emt 0:00:16]} Qc5+ {[%emt 0:00:04]} 41. Kf1 {[%emt 0:51:32]} Qc1+ {[%emt 0:50:31] Weighted Error Value: White=0.04 (flawless) /Black=0.04 (flawless)} 1/2-1/2

[Event "FIDE Womens Grand Swiss 2023"]
[Site "Douglas/Isle of Man"]
[Date "2023.11.01"]
[Round "7.2"]
[White "Assaubayeva, Bibisara"]
[Black "Vaishali, Rameshbabu"]
[Result "0-1"]
[ECO "A34"]
[WhiteElo "2469"]
[BlackElo "2448"]
[Annotator "ChessBase"]
[PlyCount "158"]
[EventDate "2023.10.04"]
[EventType "swiss"]
[EventCountry "GBR"]
[SourceTitle "playchess.com"]
[Source "ChessBase"]
[SourceQuality "1"]
[TimeControl "40/6000+30:20/3000+30:900+30"]

1. Nf3 {[%emt 0:10:04]} Nf6 {[%emt 0:10:35]} 2. g3 {[%emt 0:00:25]} c5 {[%emt 0:00:24]} 3. Bg2 {[%emt 0:00:43]} Nc6 {[%emt 0:00:22]} 4. c4 {[%emt 0:00:23]} d5 {[%emt 0:00:37]} 5. cxd5 {[%emt 0:00:08]} Nxd5 {[%emt 0:00:07]} 6. Nc3 {[%emt 0:00:14]} Nc7 {[%emt 0:01:05]} 7. O-O {[%emt 0:00:16]} e5 {[%emt 0:00:19]} 8. a3 {[%emt 0:00:26]} Rb8 {[%emt 0:00:55]} 9. d3 {[%emt 0:03:42]} Be7 {[%emt 0:00:49]} 10. Nd2 {[%emt 0:04:57]} O-O {[%emt 0:01:24]} 11. Nc4 {[%emt 0:03:03]} f6 {[%emt 0:03:03]} 12. f4 {[%emt 0:13:50]} exf4 {[%emt 0:03:22]} 13. Bxf4 {[%emt 0:00:32]} Be6 {[%emt 0:08:18]} 14. e4 {[%emt 0:08:15]} Rc8 {[%emt 0:16:58]} 15. Qe2 {[%emt 0:03:48]} Nd4 {[%emt 0:02:54]} 16. Qf2 {[%emt 0:01:40]} b5 {[%emt 0:02:02]} 17. Bxc7 {[%emt 0:04:25]} Qxc7 {[%emt 0:03:11]} 18. Ne3 {[%emt 0:00:10]} Bd6 {[%emt 0:02:11]} 19. Kh1 {[%emt 0:02:03]} Be5 {[%emt 0:07:57]} 20. Ncd5 {[%emt 0:04:26]} Qd6 {[%emt 0:02:55]} 21. a4 {[%emt 0:07:42]} a6 {[%emt 0:06:48]} 22. axb5 {[%emt 0:05:02]} axb5 {[%emt 0:00:04]} 23. Ra7 {[%emt 0:01:13]} Ra8 {[%emt 0:04:32]} 24. Rfa1 {[%emt 0:01:33]} Rxa7 {[%emt 0:00:14]} 25. Rxa7 {[%emt 0:00:02]} Qb8 {[%emt 0:01:24]} 26. Ra5 {[%emt 0:04:42]} Qb7 {[%emt 0:05:11]} 27. Qe1 {[%emt 0:06:52]} Nc6 {[%emt 0:07:04]} 28. Ra2 {[%emt 0:01:36]} Ra8 {[%emt 0:02:36]} 29. Qa1 {[%emt 0:04:23]} Rxa2 30. Qxa2 {[%emt 0:00:01]} Qa7 {[%emt 0:06:00]} 31. Nxf6+ {[%emt 0:07:32]} Kf7 {[%emt 0:00:02]} 32. Qxa7+ {[%emt 0:00:11]} Nxa7 {[%emt 0:00:02]} 33. Nxh7 {[%emt 0:00:16]} Bxb2 {[%emt 0:00:14]} 34. Ng5+ {[%emt 0:02:14]} Kf6 {[%emt 0:00:07]} 35. Nxe6 {[%emt 0:00:32]} Kxe6 {[%emt 0:00:03]} 36. Kg1 {[%emt 0:06:45]} Bd4 {[%emt 0:08:57]} 37. Kf2 {[%emt 0:00:01]} b4 {[%emt 0:00:05]} 38. Bh3+ {[%emt 0:00:15]} Kf7 {[%emt 0:05:29]} 39. Ke2 {[%emt 0:01:22]} b3 {[%emt 0:00:16]} 40. Nc4 {[%emt 0:00:56]} b2 {[%emt 0:00:32]} 41. Nxb2 {[%emt 0:52:41]} Bxb2 {[%emt 0:22:31]} 42. Bd7 {[%emt 0:00:00]} Ke7 {[%emt 0:00:22]} 43. Ba4 {[%emt 0:00:00]} Nc8 {[%emt 0:01:17]} 44. Ke3 {[%emt 0:00:00]} Kf6 {[%emt 0:00:17]} 45. Bd7 {[%emt 0:00:00]} Nd6 {[%emt 0:00:12]} 46. Bc6 {[%emt 0:00:00]} Ke5 {[%emt 0:00:39]} 47. Bd5 {[%emt 0:00:00]} Bc1+ {[%emt 0:00:43]} 48. Ke2 {[%emt 0:00:00]} Kd4 {[%emt 0:01:42]} 49. Bc6 {[%emt 0:00:00]} Nf7 {[%emt 0:00:50]} 50. Be8 {[%emt 0:00:00]} Ne5 {[%emt 0:01:01]} 51. Bb5 {[%emt 0:00:00]} Kc3 {[%emt 0:03:13]} 52. h3 {[%emt 0:00:00]} Bh6 {[%emt 0:01:07]} 53. Ba6 {[%emt 0:00:00]} Nc6 {[%emt 0:00:50]} 54. Bc4 {[%emt 0:00:00]} Kc2 {[%emt 0:02:12]} 55. h4 {[%emt 0:00:00]} Kc3 {[%emt 0:10:05]} 56. Ba6 {[%emt 0:00:00]} Kd4 {[%emt 0:05:10]} 57. Bb5 {[%emt 0:00:00]} Na5 {[%emt 0:02:34]} 58. Ba4 {[%emt 0:00:00]} Bc1 {[%emt 0:00:20]} 59. Bc2 {[%emt 0:00:00]} Nc6 {[%emt 0:01:28]} 60. Ba4 {[%emt 0:00:00]} Nb4 {[%emt 0:00:29]} 61. Bb5 {[%emt 0:04:00]} Bh6 {[%emt 0:16:55]} 62. Bc4 {[%emt 0:00:32]} Nc2 {[%emt 0:00:22]} 63. Bb3 {[%emt 0:01:44]} Na3 {[%emt 0:00:55]} 64. Ba2 {[%emt 0:01:52]} Nb5 {[%emt 0:01:02]} 65. Bc4 {[%emt 0:04:23]} Nc3+ {[%emt 0:00:07]} 66. Kf3 {[%emt 0:00:03]} Nxe4 {[%emt 0:00:14]} 67. Bf7 {[%emt 0:01:23]} Nd2+ {[%emt 0:01:06]} 68. Ke2 {[%emt 0:00:02]} Kc3 {[%emt 0:00:12]} 69. Bd5 {[%emt 0:00:15]} Kd4 {[%emt 0:00:41]} 70. Bf7 {[%emt 0:00:11]} Nb1 {[%emt 0:00:16]} 71. Bc4 {[%emt 0:00:11]} Na3 {[%emt 0:00:18]} 72. Ba6 {[%emt 0:00:24]} Nc2 {[%emt 0:00:10]} 73. Bb5 {[%emt 0:00:23]} Kc3 {[%emt 0:00:12]} 74. Bc4 {[%emt 0:00:27]} Nd4+ {[%emt 0:00:14]} 75. Ke1 {[%emt 0:00:46]} Nb3 {[%emt 0:00:57]} 76. g4 {[%emt 0:00:34]} Bd2+ {[%emt 0:00:50]} 77. Ke2 {[%emt 0:01:00]} Nc1+ {[%emt 0:00:06]} 78. Kf3 {[%emt 0:00:12]} Nxd3 {[%emt 0:00:05]} 79. Be6 {[%emt 0:00:05]} Kd4 {[%emt 0:00:28]} 0-1

[Event "FIDE Womens Grand Swiss 2023"]
[Site "Douglas/Isle of Man"]
[Date "2023.11.01"]
[Round "7.3"]
[White "Muzychuk, Mariya"]
[Black "Stefanova, Antoaneta"]
[Result "0-1"]
[ECO "C72"]
[WhiteElo "2519"]
[BlackElo "2424"]
[Annotator "ChessBase"]
[PlyCount "124"]
[EventDate "2023.10.04"]
[EventType "swiss"]
[EventCountry "GBR"]
[SourceTitle "playchess.com"]
[Source "ChessBase"]
[SourceQuality "1"]
[TimeControl "40/6000+30:20/3000+30:900+30"]

1. e4 {[%emt 0:10:03]} e5 {[%emt 0:10:05]} 2. Nf3 {[%emt 0:00:04]} Nc6 {[%emt 0:00:03]} 3. Bb5 {[%emt 0:00:11]} a6 {[%emt 0:05:24]} 4. Ba4 {[%emt 0:00:06]} d6 {[%emt 0:01:10]} 5. O-O {[%emt 0:01:32]} Bd7 {[%emt 0:01:40]} 6. c4 {[%emt 0:00:45]} Bg4 {[%emt 0:05:48]} 7. d4 {[%emt 0:06:24]} exd4 {[%emt 0:04:44]} 8. Re1 {[%emt 0:04:30]} Be7 {[%emt 0:10:47]} 9. h3 {[%emt 0:03:44]} Bxf3 {[%emt 0:03:31]} 10. Qxf3 {[%emt 0:00:06]} Bf6 {[%emt 0:04:55]} 11. e5 {[%emt 0:03:18]} dxe5 {[%emt 0:04:09]} 12. Bxc6+ {[%emt 0:00:08]} bxc6 {[%emt 0:00:04]} 13. Qxc6+ {[%emt 0:00:05]} Kf8 {[%emt 0:00:23]} 14. Nd2 {[%emt 0:01:10]} Ne7 {[%emt 0:12:35]} 15. Qf3 {[%emt 0:00:10]} Ng6 {[%emt 0:02:11]} 16. Ne4 {[%emt 0:01:43]} Be7 {[%emt 0:12:30]} 17. Ng3 {[%emt 0:04:59]} Rb8 {[%emt 0:04:07]} 18. Nf5 {[%emt 0:00:53]} h5 {[%emt 0:02:58]} 19. b3 {[%emt 0:03:17]} Kg8 {[%emt 0:03:50]} 20. Qg3 {[%emt 0:31:29]} Bf6 {[%emt 0:01:42]} 21. Ba3 {[%emt 0:02:57]} Bg5 {[%emt 0:06:25]} 22. h4 {[%emt 0:11:18]} Bf6 {[%emt 0:00:28]} 23. Rad1 {[%emt 0:00:33]} Qc8 {[%emt 0:01:39]} 24. Qf3 {[%emt 0:01:21]} Bxh4 {[%emt 0:01:52]} 25. Bc1 {[%emt 0:07:28]} Bf6 {[%emt 0:02:36]} 26. Nh6+ {[%emt 0:00:47]} Rxh6 {[%emt 0:02:49]} 27. Bxh6 {[%emt 0:00:06]} Nh4 {[%emt 0:00:19]} 28. Qxh5 {[%emt 0:00:32]} gxh6 {[%emt 0:00:16]} 29. Rd3 {[%emt 0:00:43]} Ng6 {[%emt 0:02:32]} 30. Qxh6 {[%emt 0:00:54]} Qg4 {[%emt 0:00:48]} 31. Rg3 {[%emt 0:06:31]} Qf5 {[%emt 0:01:22]} 32. Rf3 {[%emt 0:01:24]} Qg5 {[%emt 0:00:46]} 33. Qh3 {[%emt 0:00:07]} Bg7 {[%emt 0:00:40]} 34. Qd7 {[%emt 0:00:55]} Qe7 {[%emt 0:00:21]} 35. Qc6 {[%emt 0:01:16]} Rb6 {[%emt 0:00:37]} 36. Qa8+ {[%emt 0:00:55]} Bf8 {[%emt 0:00:38]} 37. Re4 {[%emt 0:03:12]} c5 {[%emt 0:01:15]} 38. Qd5 {[%emt 0:01:35]} Qe6 {[%emt 0:00:35]} 39. Qd8 {[%emt 0:01:02]} f5 {[%emt 0:00:31]} 40. Re1 {[%emt 0:00:45]} f4 {[%emt 0:00:42]} 41. Rh3 {[%emt 0:29:13]} Rd6 {[%emt 0:32:54]} 42. Qc7 {[%emt 0:00:53]} Rd7 {[%emt 0:01:12]} 43. Qc8 {[%emt 0:00:14]} Qd6 {[%emt 0:03:00]} 44. Rh5 {[%emt 0:06:50]} d3 {[%emt 0:02:58]} 45. Rd1 {[%emt 0:00:14]} d2 {[%emt 0:03:59]} 46. Rg5 {[%emt 0:01:01]} Kg7 {[%emt 0:01:24]} 47. Qe8 {[%emt 0:00:19]} Rf7 {[%emt 0:03:06]} 48. Qa8 {[%emt 0:00:34]} Kf6 {[%emt 0:01:51]} 49. Rh5 {[%emt 0:06:50]} Rd7 {[%emt 0:00:40]} 50. Qe4 {[%emt 0:06:51]} Kg7 {[%emt 0:01:10]} 51. Rg5 {[%emt 0:00:17]} Qf6 {[%emt 0:00:18]} 52. Rg4 {[%emt 0:01:14]} Rd4 {[%emt 0:00:18]} 53. Qb7+ {[%emt 0:00:34]} Be7 {[%emt 0:00:31]} 54. f3 {[%emt 0:00:06]} Kf7 {[%emt 0:01:11]} 55. Qc8 {[%emt 0:00:31]} Rd8 {[%emt 0:01:24]} 56. Qb7 {[%emt 0:00:16]} Qf5 {[%emt 0:00:36]} 57. Kf2 {[%emt 0:01:50]} Qc2 {[%emt 0:01:03]} 58. Qe4 {[%emt 0:00:19]} Qxe4 {[%emt 0:00:32]} 59. fxe4 {[%emt 0:00:02]} Bh4+ {[%emt 0:00:08]} 60. Ke2 {[%emt 0:00:55]} Be1 {[%emt 0:00:05]} 61. Rg5 {[%emt 0:15:40]} Rd4 {[%emt 0:15:18]} 62. Kf3 {[%emt 0:00:19]} Nh4+ {[%emt 0:01:19]} 0-1

[Event "FIDE Womens Grand Swiss 2023"]
[Site "Douglas/Isle of Man"]
[Date "2023.11.01"]
[Round "7.4"]
[White "Tan, Zhongyi"]
[Black "Tsolakidou, Stavroula"]
[Result "1/2-1/2"]
[ECO "E68"]
[WhiteElo "2517"]
[BlackElo "2385"]
[Annotator "ChessBase"]
[PlyCount "76"]
[EventDate "2023.10.04"]
[EventType "swiss"]
[EventCountry "GBR"]
[SourceTitle "playchess.com"]
[Source "ChessBase"]
[SourceQuality "1"]
[TimeControl "40/6000+30:20/3000+30:900+30"]

1. d4 {[%emt 0:10:11]} Nf6 {[%emt 0:10:06]} 2. c4 {[%emt 0:00:06]} g6 {[%emt 0:00:06]} 3. Nc3 {[%emt 0:00:27]} Bg7 {[%emt 0:00:10]} 4. g3 {[%emt 0:00:05]} O-O {[%emt 0:00:20]} 5. Bg2 {[%emt 0:00:03]} d6 {[%emt 0:00:33]} 6. Nf3 {[%emt 0:00:05]} Nbd7 {[%emt 0:00:39]} 7. O-O {[%emt 0:00:18]} e5 {[%emt 0:00:11]} 8. e4 {[%emt 0:00:05]} exd4 {[%emt 0:00:16]} 9. Nxd4 {[%emt 0:00:05]} Re8 {[%emt 0:00:15]} 10. h3 {[%emt 0:00:47]} Nc5 {[%emt 0:00:20]} 11. Re1 {[%emt 0:00:10]} h6 {[%emt 0:01:12]} 12. Rb1 {[%emt 0:02:50]} a5 {[%emt 0:01:44]} 13. b3 {[%emt 0:02:04]} Bd7 {[%emt 0:02:31]} 14. Ndb5 {[%emt 0:05:04]} Qc8 {[%emt 0:19:35]} 15. h4 {[%emt 0:00:05]} Bg4 {[%emt 0:08:15]} 16. Qc2 {[%emt 0:08:34]} Qd7 {[%emt 0:06:17]} 17. Bf4 {[%emt 0:01:40]} Nh5 {[%emt 0:02:44]} 18. Be3 {[%emt 0:00:09]} c6 {[%emt 0:00:41]} 19. Nd4 {[%emt 0:00:12]} f5 {[%emt 0:15:05]} 20. Qd2 {[%emt 0:33:58]} fxe4 {[%emt 0:13:30]} 21. Bxh6 {[%emt 0:00:08]} Nf6 {[%emt 0:00:27]} 22. Na4 {[%emt 0:02:39]} Nxa4 {[%emt 0:04:31]} 23. bxa4 {[%emt 0:00:05]} Re7 {[%emt 0:01:11]} 24. Rb3 {[%emt 0:04:12]} Qe8 {[%emt 0:06:42]} 25. Reb1 {[%emt 0:08:25]} Bxh6 {[%emt 0:02:05]} 26. Qxh6 {[%emt 0:00:06]} Qf7 {[%emt 0:00:16]} 27. Qg5 {[%emt 0:02:49]} Rf8 {[%emt 0:01:48]} 28. R1b2 {[%emt 0:02:45]} Bc8 {[%emt 0:02:16]} 29. Ne2 {[%emt 0:01:31]} Qxc4 {[%emt 0:05:23]} 30. Nf4 {[%emt 0:00:32]} Rg7 {[%emt 0:01:37]} 31. Qxa5 {[%emt 0:03:41]} d5 {[%emt 0:01:57]} 32. Rc3 {[%emt 0:05:34]} Qd4 {[%emt 0:00:06]} 33. Qb4 {[%emt 0:00:12]} Qd1+ {[%emt 0:03:05]} 34. Bf1 {[%emt 0:00:06]} Nh5 {[%emt 0:00:40]} 35. Rb1 {[%emt 0:08:32]} Qd2 {[%emt 0:00:09]} 36. Rb2 {[%emt 0:00:06]} Qd1 {[%emt 0:00:03]} 37. Rb1 {[%emt 0:05:55]} Qd2 {[%emt 0:00:04]} 38. Rb2 {[%emt 0:00:03]} Qd1 {[%emt 0:00:03]} 1/2-1/2

[Event "FIDE Womens Grand Swiss 2023"]
[Site "Douglas/Isle of Man"]
[Date "2023.11.01"]
[Round "7.5"]
[White "Milliet, Sophie"]
[Black "Efroimski, Marsel"]
[Result "1-0"]
[ECO "B13"]
[WhiteElo "2391"]
[BlackElo "2447"]
[Annotator "ChessBase"]
[PlyCount "89"]
[EventDate "2023.10.04"]
[EventType "swiss"]
[EventCountry "GBR"]
[SourceTitle "playchess.com"]
[Source "ChessBase"]
[SourceQuality "1"]
[TimeControl "40/6000+30:20/3000+30:900+30"]

1. e4 {[%emt 0:10:06]} c6 {[%emt 0:10:03]} 2. d4 {[%emt 0:00:25]} d5 {[%emt 0:00:04]} 3. exd5 {[%emt 0:00:15]} cxd5 {[%emt 0:00:03]} 4. Nf3 {[%emt 0:00:07]} Nc6 {[%emt 0:00:07]} 5. Bb5 {[%emt 0:02:21]} Bd7 {[%emt 0:02:23]} 6. O-O {[%emt 0:02:18]} e6 {[%emt 0:02:19]} 7. c4 {[%emt 0:00:46]} Bd6 {[%emt 0:05:42]} 8. Nc3 {[%emt 0:07:21]} Nge7 {[%emt 0:00:27]} 9. Bg5 {[%emt 0:05:48]} f6 {[%emt 0:05:09]} 10. Bh4 {[%emt 0:00:22]} O-O {[%emt 0:14:39]} 11. cxd5 {[%emt 0:00:32]} exd5 {[%emt 0:00:06]} 12. Bg3 {[%emt 0:00:49]} Bg4 {[%emt 0:05:01]} 13. Be2 {[%emt 0:04:41]} Bxg3 {[%emt 0:23:26]} 14. hxg3 {[%emt 0:00:05]} Nf5 {[%emt 0:01:10]} 15. Qd2 {[%emt 0:08:17]} Rf7 {[%emt 0:07:05]} 16. Bd3 {[%emt 0:27:14]} h5 {[%emt 0:01:11]} 17. Bxf5 {[%emt 0:04:40]} Bxf5 {[%emt 0:00:02]} 18. Rfe1 {[%emt 0:00:34]} Qd7 {[%emt 0:00:42]} 19. Re3 {[%emt 0:01:36]} g5 {[%emt 0:02:49]} 20. Rae1 {[%emt 0:00:24]} Kg7 {[%emt 0:00:46]} 21. a3 {[%emt 0:02:57]} Rh8 {[%emt 0:03:35]} 22. b4 {[%emt 0:04:36]} Ne7 {[%emt 0:01:47]} 23. Nxg5 {[%emt 0:05:21]} fxg5 {[%emt 0:00:10]} 24. Rxe7 {[%emt 0:00:07]} Rxe7 {[%emt 0:00:13]} 25. Qxg5+ {[%emt 0:00:03]} Kf7 {[%emt 0:00:14]} 26. Rxe7+ {[%emt 0:00:08]} Qxe7 {[%emt 0:00:04]} 27. Qxf5+ {[%emt 0:00:04]} Qf6 {[%emt 0:03:57]} 28. Qxd5+ {[%emt 0:00:15]} Kg6 {[%emt 0:02:27]} 29. Ne4 {[%emt 0:05:29]} Qe7 {[%emt 0:00:23]} 30. f3 {[%emt 0:04:24]} Rd8 {[%emt 0:03:57]} 31. Qc4 {[%emt 0:02:03]} Qd7 {[%emt 0:01:04]} 32. Kh2 {[%emt 0:00:11]} Qxd4 {[%emt 0:05:24]} 33. Qe6+ {[%emt 0:00:12]} Kg7 {[%emt 0:00:33]} 34. Qe7+ {[%emt 0:00:56]} Kg6 {[%emt 0:00:04]} 35. Qe6+ {[%emt 0:03:31]} Kg7 {[%emt 0:00:10]} 36. Qe7+ {[%emt 0:01:56]} Kg6 {[%emt 0:00:04]} 37. f4 {[%emt 0:04:13]} Rd7 {[%emt 0:05:19]} 38. Qe6+ {[%emt 0:01:35]} Kg7 {[%emt 0:00:09]} 39. f5 {[%emt 0:00:22]} Rf7 {[%emt 0:05:35]} 40. Qg6+ {[%emt 0:00:23]} Kf8 {[%emt 0:00:08]} 41. Ng5 {[%emt 0:50:51]} Qd5 {[%emt 0:50:49]} 42. Qxf7+ {[%emt 0:01:20]} Qxf7 {[%emt 0:00:03]} 43. Nxf7 {[%emt 0:00:04]} Kxf7 {[%emt 0:00:03]} 44. g4 {[%emt 0:00:07]} hxg4 {[%emt 0:00:23]} 45. Kg3 {[%emt 0:00:03]} 1-0